Cogmind - Beta 10.2 @@@ ROGUE MODE // 2020.11.01 @ 18:55:02 // Halloween2020/ForbiddenLore Player: blelm Result: Self-destructed Performance ------------- Evolutions (6) 3000 Regions Visited (13) 2600 Robots Destroyed (247) 1235 Value Destroyed (7268) 7268 Prototype IDs (48) 960 Alien Tech Used (0) 0 Bonus (584) 584 TOTAL SCORE: 15647 Bonus ------- High Alert Combat Kills 284 Aligned with FarCom 300 Cogmind --------- Core Integrity 1065/1150 Matter 198/300 Energy 234/240 System Corruption 2% Temperature Cool (21) Movement Hovering (64) Location -4/Factory Parts ------- > --- POWER (2) -------- Micro Fission Core Micro Fission Core > --- PROPULSION (5) --- Combat Airjet Combat Airjet Combat Airjet Combat Airjet Combat Airjet > --- UTILITY (10) ----- Large Storage Unit Large Storage Unit Advanced ECM Suite Improved Hacking Suite Improved Hacking Suite Improved Hacking Suite System Shield > --- WEAPON (2) ------- Longsword +1 > --- INVENTORY (16) --- Micro Fission Core Mini Fusion Reactor Combat Airjet Combat Airjet Combat Airjet Advanced Cooling System Large Storage Unit Advanced Energy Well (800) Improved Matter Compressor (143) Long-range Terrain Scanner System Shield Improved System Restoration Module Neutron Cannon Railgun Railgun Heavy Shock Bomb Launcher Peak State ------------ > --- POWER ------------ Micro Fission Core Micro Fission Core > --- PROPULSION ------- Combat Airjet Combat Airjet Combat Airjet Combat Airjet Combat Airjet > --- UTILITY ---------- Improved Fusion Compressor Large Storage Unit Large Storage Unit Advanced Terrain Scan Processor Heavy Reactive Plating Hacking Suite Improved Hacking Suite Improved Hacking Suite System Shield > --- WEAPON ----------- Neutron Cannon Longsword +1 > --- INVENTORY -------- Micro Fission Core Mini Fusion Reactor Combat Airjet Combat Airjet Combat Airjet Advanced Cooling System Large Storage Unit Advanced Energy Well Improved Matter Compressor Advanced ECM Suite System Shield Improved System Restoration Module Railgun Railgun Heavy Shock Bomb Launcher Rocket Array [Rating: 100] Favorites ----------- Power Micro Fission Core Engine Light Angular Momentum Engine Power Core Micro Fission Core Propulsion Combat Airjet Treads Advanced Treads Leg Aluminum Leg Wheel Compact Wheel Hover Unit Combat Airjet Utility Hacking Suite Device Long-range Terrain Scanner Storage Large Storage Unit Processor Advanced Terrain Scan Processor Hackware Hacking Suite Protection Heavy Reactive Plating Weapon Heavy Assault Rifle Energy Gun EM Pulse Gun Energy Cannon Neutron Cannon Ballistic Gun Heavy Assault Rifle Launcher Mini Grenade Launcher Impact Weapon Mace Slashing Weapon Longsword +1 Build | -11 -10 -10 -9 -9 -9 -8 -8 -7 -6 -5 -5 -5 -4 ------- Run | Scr Mat Min Mat Min Exi Min Mat Fac Fac Fac Was Fac Fac Slots Evolved 12 | . . . 2 . . . 2 2 2 2 . . 2 Power 1 | . . . . . . . . . . . . . 1 Propulsion 3 | . . . 1 . . . . 1 . . . . 1 Utility 8 | . . . 1 . . . 2 1 2 2 . . . Weapon . | . . . . . . . . . . . . . . Parts Attached 322 | 3 16 8 24 . 3 2 40 57 46 43 1 13 66 Power 29 | . 1 1 3 . . 1 2 7 2 2 . 2 8 Engine 12 | . 1 1 2 . . 1 1 4 1 . . . 1 Core 17 | . . . 1 . . . 1 3 1 2 . 2 7 Reactor . | . . . . . . . . . . . . . . Propulsion 44 | 2 3 . 4 . . . 8 11 4 3 . 3 6 Treads 19 | 1 3 . 4 . . . 5 6 . . . . . Leg . | . . . . . . . . . . . . . . Wheel 1 | 1 . . . . . . . . . . . . . Hover 24 | . . . . . . . 3 5 4 3 . 3 6 Flight . | . . . . . . . . . . . . . . Utility 125 | 1 3 . 3 . 3 . 9 18 24 16 . 4 44 Device 48 | . . . . . . . . 4 6 6 . . 32 Storage 21 | 1 3 . . . 3 . 1 5 1 2 . 2 3 Processor 4 | . . . . . . . . 2 . . . 1 1 Hackware 10 | . . . . . . . . 3 3 1 . . 3 Protection 42 | . . . 3 . . . 8 4 14 7 . 1 5 Artifact . | . . . . . . . . . . . . . . Weapon 124 | . 9 7 14 . . 1 21 21 16 22 1 4 8 Energy Gun 1 | . 1 . . . . . . . . . . . . Energy Cannon 20 | . . . . . . . 2 1 6 8 . 1 2 Ballistic Gun 56 | . 6 2 10 . . . 11 11 9 7 . . . Ballistic Cannon . | . . . . . . . . . . . . . . Launcher 22 | . 1 3 2 . . 1 3 4 . 1 1 2 4 Special Weapon . | . . . . . . . . . . . . . . Impact Weapon 3 | . 1 2 . . . . . . . . . . . Slashing Weapon 22 | . . . 2 . . . 5 5 1 6 . 1 2 Piercing Weapon . | . . . . . . . . . . . . . . Special Melee Weapon . | . . . . . . . . . . . . . . Unidentified Prototypes 15 | . . . 1 . . . 1 4 1 . . . 8 Parts Lost 25 | . 3 1 1 . . . 3 1 2 4 . 6 4 Power 4 | . . . . . . . 2 . . . . 1 1 Propulsion 4 | . 2 . . . . . . . . . . 2 . Utility 11 | . . . 1 . . . 1 1 2 2 . 2 2 Weapon 6 | . 1 1 . . . . . . . 2 . 1 1 Highest Loss Streak 5 | . 2 1 1 . . . 1 1 1 3 . 5 3 Average Slot Usage (%) 95 | . 99 100 98 100 100 100 91 95 95 94 92 87 93 Engine 4 | . 14 14 6 . . 1 5 2 6 1 . . . Core 4 | . . . 4 11 11 10 3 4 . 3 5 4 9 Treads 15 | . 26 28 33 33 33 33 26 16 . . . . . Hover 12 | . . . . . . . . 13 26 22 23 22 25 Device 2 | . . . . . . . . 2 4 4 5 3 4 Storage 18 | . 28 28 22 22 22 22 27 20 13 11 11 11 10 Processor 2 | . . . . . . . . 2 6 5 5 5 5 Hackware 10 | . . . . . . . . 9 16 23 23 23 21 Protection 6 | . . . 9 11 11 11 10 6 6 6 5 5 4 Energy Cannon 1 | . . . . . . . . . 4 3 . 2 4 Ballistic Gun 11 | . 26 22 21 22 22 11 16 10 6 5 3 . . Slashing Weapon 1 | . . . . . . . 1 3 . 1 . 3 4 Naked Turns . | . . . . . . . . . . . . . . Heaviest Build 136 | 17 59 59 68 68 84 84 129 136 76 89 87 86 101 Greatest Support 110 | 16 40 40 66 66 66 66 66 104 88 88 88 88 110 Greatest Overweight (x) 26 | 1 2 1 1 1 1 1 2 1 . 1 . 26 1 Average Overweight (x) . | . 1 1 . 1 1 1 1 . . . . . . Largest Inventory Capacity 28 | 8 18 18 18 18 20 20 28 28 16 16 16 16 16 Average Capacity 19 | 6 16 18 18 18 19 20 27 23 16 16 16 16 16 Most Carried 28 | 6 15 15 18 18 20 20 28 28 16 16 16 16 16 Average Carried 18 | 4 12 13 17 18 18 19 26 22 15 15 16 14 15 Final Capacity 28 | 8 18 18 18 18 20 20 28 16 16 16 16 16 16 Final Carried 28 | 4 13 15 18 18 18 20 28 15 16 16 16 15 16 Class Distribution -------------------- 27% | Hacker-Scout 26% | Hauler-Mutant 23% | Mutant 20% | Hacker-Mutant Dominant Class ---------------- Mutant | -10/Materials Mutant | -10/Mines Mutant | -9/Materials Mutant | -9/Mines Hauler-Mutant | -9/Exiles Hauler-Mutant | -8/Mines Hauler-Mutant | -8/Materials Hauler-Mutant | -7/Factory Hacker-Scout | -6/Factory Hacker-Scout | -5/Factory Hacker-Scout | -5/Waste Hacker-Scout | -5/Factory Hacker-Mutant | -4/Factory Resources | -11 -10 -10 -9 -9 -9 -8 -8 -7 -6 -5 -5 -5 -4 ----------- Run | Scr Mat Min Mat Min Exi Min Mat Fac Fac Fac Was Fac Fac Matter Collected 6745 | 230 451 274 774 34 49 144 807 1086 688 659 117 599 833 Remotely . | . . . . . . . . . . . . . . Salvage Created 9764 | 72 675 183 1300 9 . 115 1048 1684 794 776 489 762 1857 Parts 572 | 1 52 15 104 1 . 12 75 91 35 38 2 42 104 Haulers Intercepted 17 | . 1 . 4 . . . 4 3 1 1 . . 3 Recyclers Shooed 15 | 2 1 . 1 . . . . 5 2 1 . 1 2 Parts Field Recycled . | . . . . . . . . . . . . . . Retrieved Matter . | . . . . . . . . . . . . . . Parts Self-Destructed . | . . . . . . . . . . . . . . Prevented . | . . . . . . . . . . . . . . Kills | -11 -10 -10 -9 -9 -9 -8 -8 -7 -6 -5 -5 -5 -4 ------- Run | Scr Mat Min Mat Min Exi Min Mat Fac Fac Fac Was Fac Fac Combat Hostiles Destroyed 159 | . 15 12 28 . . 9 20 19 8 6 3 9 30 Melee 23 | . . . . . . . . . . . . 4 19 Guns 79 | . 12 6 23 . . 1 11 14 6 6 . . . Cannons 4 | . . . . . . . . . 1 . . . 3 AOE 53 | . 3 6 5 . . 8 9 5 1 . 3 5 8 Classes Destroyed 15 | 1 6 1 3 . . . . 1 1 . 1 . 1 Worker 10 | . . . 3 . . 1 . 1 1 3 . . 1 Builder 13 | . 1 . . . . 1 2 . 1 . . 3 5 Tunneler 2 | . . . 1 1 . . . . . . . . . Hauler 17 | . 1 . 4 . . . 4 3 1 1 . . 3 Recycler 21 | 1 1 . 1 . . . . 10 2 3 . 2 1 Operator 7 | . 1 . 2 . . . 1 . 2 1 . . . Watcher 18 | . 1 . 3 . . . 4 5 . 1 . 1 3 Swarmer 59 | . 3 6 12 . . 7 7 11 2 . . . 11 Grunt 40 | . 12 2 9 . . 2 5 2 1 . . 4 3 Protector 1 | . . . . . . . . . . . . . 1 Sentry 17 | . . . 7 . . . 8 1 1 . . . . Hunter 2 | . . . . . . . . . 1 . . 1 . Programmer 33 | . . . . . . . . 5 3 6 . 4 15 Compactor 3 | . . . . . . . . . . . 3 . . Assembled 4 | . . 4 . . . . . . . . . . . Best Kill Streak 7 | 1 4 3 6 1 . 4 4 6 3 3 2 7 7 Combat Bots Only 7 | . 4 3 4 . . 4 4 4 3 2 2 5 7 Max Kills in Single Turn 5 | 1 3 2 2 1 . 3 3 2 2 1 1 3 5 Gunslinging 1 | . . . . . . . . 1 . . . . . Exploded 4 | . 3 2 2 . . 3 3 2 1 . 1 2 4 Melee 1 | . . . . . . . . . . . . 1 1 Uniques/NPCs Destroyed . | . . . . . . . . . . . . . . Combat | -11 -10 -10 -9 -9 -9 -8 -8 -7 -6 -5 -5 -5 -4 -------- Run | Scr Mat Min Mat Min Exi Min Mat Fac Fac Fac Was Fac Fac Damage Taken 11050 | . 740 429 985 . . 29 781 885 1463 1771 397 1610 1960 Core 950 | . 124 59 98 . . 20 37 104 52 167 31 173 85 Absorbed by Shields . | . . . . . . . . . . . . . . Core Remaining (%) 75 | 100 . 26 . . . 70 93 85 93 . . 62 . Volleys Fired 597 | 8 52 26 97 . . 11 58 65 108 82 23 16 51 Largest 2 | 2 2 2 2 . . 1 2 2 2 2 1 1 1 Hottest 131 | 90 46 46 46 . . 30 75 75 65 131 43 90 90 Shots Fired 931 | 16 103 42 189 . . 11 97 120 144 120 22 14 53 Gun 650 | 16 102 32 184 . . 4 78 112 57 65 . . . Cannon 201 | . . . . . . . 7 2 87 53 . 8 44 Launcher 80 | . 1 10 5 . . 7 12 6 . 2 22 6 9 Special . | . . . . . . . . . . . . . . Kinetic 634 | . 102 32 184 . . 4 78 112 57 65 . . . Thermal 209 | 8 . . . . . . 7 2 87 53 . 8 44 Explosive 70 | . 1 10 5 . . 7 9 5 . 2 22 5 4 Electromagnetic 18 | 8 . . . . . . 3 1 . . . 1 5 Robot Hit Streak 26 | 5 13 8 20 . . 7 26 12 14 10 23 2 5 Robot Miss Streak 5 | 3 3 2 5 . . 1 4 5 2 5 . 3 2 Penetration Max 1 | . . . . . . . . 1 1 . . . . Secondary Targets 7 | . 4 1 . . . . . 2 . . . . . Max Gunslinging Chain 1 | . 1 1 . . . . . 1 . . . . . Shots Hit Robots 653 | 10 78 28 134 . . 7 76 77 61 54 21 17 90 Core Hits 394 | 2 28 16 60 1 . 15 46 53 22 29 10 34 78 Critical Hits 10 | . . . 3 . . . . 2 2 1 . 1 1 Critical Kills 4 | . . . 2 . . . . 1 1 . . . . Critical Parts Destroyed 6 | . . . 1 . . . . 1 1 1 . 1 1 Melee Attacks 269 | . 1 4 3 . . . 11 44 18 17 . 27 144 Impact 5 | . 1 4 . . . . . . . . . . . Slashing 264 | . . . 3 . . . 11 44 18 17 . 27 144 Piercing . | . . . . . . . . . . . . . . Sneak Attacks 23 | . . . . . . . 2 3 3 4 . 3 8 Combat Hostiles . | . . . . . . . . . . . . . . Follow-up Attacks . | . . . . . . . . . . . . . . Damage Inflicted 27774 | 165 1313 790 2391 4 . 805 2630 2703 2368 2406 3712 1973 6514 Guns 8924 | 165 1151 350 1963 . . 48 1143 1696 1167 1241 . . . Cannons 958 | . . . . . . . 25 . 494 71 . . 368 Explosions 9989 | . 143 436 418 . . 741 1018 452 126 315 3712 1013 1615 Melee 7745 | . . . . . . . 424 470 581 779 . 960 4531 Ramming 158 | . 19 4 10 4 . 16 20 85 . . . . . Kinetic 8759 | . 1151 350 1963 . . 48 1143 1696 1167 1241 . . . Thermal 1552 | 75 . . 55 . . . 25 . 494 138 . 76 689 Explosive 8881 | . 143 436 363 . . 741 866 441 126 248 3712 765 1040 Electromagnetic 679 | 90 . . . . . . 152 11 . . . 172 254 Impact . | . . . . . . . . . . . . . . Slashing 7745 | . . . . . . . 424 470 581 779 . 960 4531 Piercing . | . . . . . . . . . . . . . . Highest Corruption 33 | . . . 1 1 1 1 . 3 1 14 29 33 8 Average Corruption 6 | . . . 1 1 1 1 . 2 1 8 22 29 3 Corruption Purged 11 | . . . . . . . . . . . . . 11 Effects 207 | . . . . 1 3 2 . 22 6 26 18 99 30 Message Errors 32 | . . . . 1 2 . . 2 1 8 . 12 6 Matter Fused 22 | . . . . . . . . 4 . . 2 14 2 Heat Flow Errors 24 | . . . . . . . . 4 . 3 . 12 5 Energy Discharges 24 | . . . . . 1 2 . 5 2 1 3 4 6 Parts Rejected 2 | . . . . . . . . . . 2 . . . Data Loss (minor) 26 | . . . . . . . . 5 2 2 3 8 6 Data Loss (major) 6 | . . . . . . . . . . . 1 5 . Misfires 4 | . . . . . . . . . . 2 . . 2 Alerts 1 | . . . . . . . . . . . . 1 . Misdirections 40 | . . . . . . . . . . 2 6 32 . Targeting Errors 22 | . . . . . . . . 2 1 5 2 9 3 Weapon Failures 4 | . . . . . . . . . . 1 1 2 . Overload Shots . | . . . . . . . . . . . . . . Overflow Damage 1666 | . . 29 1 . . 21 173 162 273 41 20 86 860 Projectiles 77 | . . . . . . . . . 23 . . . 54 Explosions 376 | . . 29 1 . . 21 132 59 . 41 20 1 72 Melee 1213 | . . . . . . . 41 103 250 . . 85 734 Knockbacks 2 | . . . . . . . . 2 . . . . . Impact 1 | . . . . . . . . 1 . . . . . Kinetic . | . . . . . . . . . . . . . . Secondary 1 | . . . . . . . . 1 . . . . . Self-Inflicted Damage 1278 | . . 65 . . . . 210 39 191 207 376 71 119 Shots 31 | . . 4 . . . . 3 2 2 3 11 1 5 Rammed 15 | . 1 1 4 . . 1 2 6 . . . . . Targets Rammed 20 | . 3 1 4 1 . 2 2 7 . . . . . Kicked . | . . . . . . . . . . . . . . Crushed 5 | . 2 . . 1 . 1 . 1 . . . . . Highest Temperature 520 | 170 16 15 14 . . 6 102 264 121 417 7 329 520 Average Temperature 59 | 92 4 4 4 . . 4 24 66 30 136 4 104 50 Received Heat Transfer 1960 | . 393 112 354 . . 9 180 66 252 63 . 405 126 Effects 12 | . . . . . . . . . . 1 . 4 7 Shutdowns 5 | . . . . . . . . . . 1 . 1 3 Interference 5 | . . . . . . . . . . . . 2 3 Damage (minor) 2 | . . . . . . . . . . . . 1 1 Siege Activations . | . . . . . . . . . . . . . . Robots Corrupted . | . . . . . . . . . . . . . . Combat Hostiles . | . . . . . . . . . . . . . . Parts Fried 1 | . . . . . . . 1 . . . . . . Impact Corruptions . | . . . . . . . . . . . . . . Robots Melted . | . . . . . . . . . . . . . . Combat Hostiles . | . . . . . . . . . . . . . . Parts Melted 3 | . . . . . . . . . 3 . . . . Heat Transferred 1834 | 222 . . 50 . . . 37 . 700 200 . 150 475 Parts Sabotaged . | . . . . . . . . . . . . . . Parts Stolen . | . . . . . . . . . . . . . . Parts Stripped . | . . . . . . . . . . . . . . Power Chain Reactions 3 | . . . . . . . . . . . . 2 1 Missiles Intercepted . | . . . . . . . . . . . . . . Alert | -11 -10 -10 -9 -9 -9 -8 -8 -7 -6 -5 -5 -5 -4 ------- Run | Scr Mat Min Mat Min Exi Min Mat Fac Fac Fac Was Fac Fac Peak Influence 1092 | 5 160 96 414 166 . 191 335 728 445 384 245 647 1092 Initial 338 | . 3 3 . 161 . . 34 137 338 63 74 171 316 Average 209 | 2 75 34 181 164 . 88 163 354 152 137 169 309 296 Maximum Alert Level 3 | . . . 2 . . . 1 3 2 1 1 2 3 Low Security (%) 60 | 100 100 100 61 100 . 100 62 38 79 85 63 27 32 Level 1 26 | . . . 36 . . . 37 21 18 14 36 41 41 Level 2 12 | . . . 2 . . . . 38 2 . . 30 21 Level 3 . | . . . . . . . . 1 . . . . 4 Level 4 . | . . . . . . . . . . . . . . Level 5 . | . . . . . . . . . . . . . . High Security . | . . . . . . . . . . . . . . Max Security . | . . . . . . . . . . . . . . Squads Dispatched 49 | . 4 . 2 . . . 2 10 9 4 . 5 13 Investigation 13 | . 3 . 1 . . . . 2 5 . . 1 1 Extermination 19 | . . . . . . . . 5 1 3 . 2 8 Reinforcement 14 | . 1 . 1 . . . 2 1 3 1 . 2 3 Assault 3 | . . . . . . . . 2 . . . . 1 Garrison . | . . . . . . . . . . . . . . Intercept . | . . . . . . . . . . . . . . Construction Impeded 5 | . . . . . . . 1 1 . . . 1 2 Haulers Reinforced 2 | . . . . . . . . . . 1 . . 1 Stealth | -11 -10 -10 -9 -9 -9 -8 -8 -7 -6 -5 -5 -5 -4 --------- Run | Scr Mat Min Mat Min Exi Min Mat Fac Fac Fac Was Fac Fac Distress Signals 19 | . 2 . 5 . . . 2 . . 3 . . 7 Communications Jammed . | . . . . . . . . . . . . . . Distress Signals . | . . . . . . . . . . . . . . Times Spotted 317 | . 23 24 47 . . 7 38 35 28 19 6 19 71 Peak Tracking Total 12 | . 5 12 5 . . 3 4 5 5 6 4 6 9 Tactical Retreats 33 | . . 3 6 . . 1 2 3 4 2 . 2 10 Traps | -11 -10 -10 -9 -9 -9 -8 -8 -7 -6 -5 -5 -5 -4 ------- Run | Scr Mat Min Mat Min Exi Min Mat Fac Fac Fac Was Fac Fac Traps Triggered 19 | . 4 . 3 . . . . 3 4 4 . 1 . Indirectly . | . . . . . . . . . . . . . . Trap Hack Attempts . | . . . . . . . . . . . . . . Triggered . | . . . . . . . . . . . . . . Disarmed . | . . . . . . . . . . . . . . Reprogrammed . | . . . . . . . . . . . . . . Reused . | . . . . . . . . . . . . . . Traps Extracted . | . . . . . . . . . . . . . . Installed . | . . . . . . . . . . . . . . Triggered . | . . . . . . . . . . . . . . Exploded 1 | . . . . . 1 . . . . . . . . Machines | -11 -10 -10 -9 -9 -9 -8 -8 -7 -6 -5 -5 -5 -4 ---------- Run | Scr Mat Min Mat Min Exi Min Mat Fac Fac Fac Was Fac Fac Machines Disabled 28 | . . . 2 . . . 2 4 3 11 . . 6 Max in Single Turn 4 | . . . 1 . . . 1 2 3 4 . . 4 Garrison Access 5 | . . . . . . . 1 . 2 1 . . 1 Machines Sabotaged . | . . . . . . . . . . . . . . Garrisons Compromised . | . . . . . . . . . . . . . . Overloaded Fab Kills . | . . . . . . . . . . . . . . Fab Network Shutdowns 2 | . . . . . . . . 1 . . . 1 . Hacking | -11 -10 -10 -9 -9 -9 -8 -8 -7 -6 -5 -5 -5 -4 --------- Run | Scr Mat Min Mat Min Exi Min Mat Fac Fac Fac Was Fac Fac Machines Accessed 104 | . 4 1 11 . 1 . 12 17 23 8 . 5 22 Terminals 59 | . 3 1 8 . . . 7 9 13 6 . 1 11 Fabricators 9 | . . . . . . . . 3 3 . . 1 2 Repair Stations 12 | . . . 1 . . . 1 3 3 . . 1 3 Recycling Units 8 | . 1 . 1 . . . 2 1 . . . . 3 Scanalyzers 8 | . . . 1 . . . 1 1 1 1 . 1 2 Garrison Access 7 | . . . . . . . 1 . 3 1 . 1 1 Total Hacks 333 | . 14 3 32 . 1 . 43 54 84 29 . 17 56 Successful 193 | . 4 1 13 . 1 . 29 32 54 16 . 9 34 Failed 140 | . 10 2 19 . . . 14 22 30 13 . 8 22 Catastrophic 16 | . 2 . 1 . . . 1 1 6 1 . 2 2 Database Lockouts . | . . . . . . . . . . . . . . Manual 138 | . 11 3 19 . 1 . 12 17 35 15 . 3 22 Terminals 194 | . 12 3 24 . . . 17 24 55 26 . 2 31 Fabricators 35 | . . . . . . . . 16 9 . . 5 5 Repair Stations 47 | . . . 3 . . . 10 10 12 . . 3 9 Recycling Units 15 | . 2 . 3 . . . 3 2 . . . . 5 Scanalyzers 28 | . . . 2 . . . 11 2 3 2 . 3 5 Garrison Access 13 | . . . . . . . 2 . 5 1 . 4 1 Terminal Hacks 69 | . 4 1 5 . 1 . 6 5 25 10 . . 12 Record 5 | . . . . . . . . . 1 3 . . 1 Part Schematic 2 | . . . . . . . . . 2 . . . . Robot Analysis 8 | . 1 1 . . . . 1 . 2 . . . 3 Prototype ID Bank 5 | . . . 1 . . . . . 4 . . . . Level Access Points 1 | . . . . . . . . . . 1 . . . Branch Access Points 5 | . . . 1 . . . 1 1 1 . . . 1 Machine Index 3 | . . . . . . . . . 1 1 . . 1 Terminal Index 1 | . . . . . . . . 1 . . . . . Fabricator Index 1 | . . . . . . . . 1 . . . . . Repair Station Index 1 | . . . . . . . 1 . . . . . . Alert Level 5 | . . . . . . . . . 4 . . . 1 Unreport Threat 10 | . 1 . 1 . . . 1 1 3 1 . . 2 Locate Traps 8 | . 1 . . . . . 1 . 2 2 . . 2 Recall Investigation 1 | . . . . . . . . . 1 . . . . Hauler Manifests 7 | . 1 . 1 . . . 1 1 2 1 . . . Registered Prototypes 4 | . . . . . . . . . 2 1 . . 1 Zone Layout 1 | . . . 1 . . . . . . . . . . EX-Prototype ID Bank 1 | . . . . . 1 . . . . . . . . Fabricator Hacks 24 | . . . . . . . . 9 7 . . 4 4 Network Status 1 | . . . . . . . . . 1 . . . . Load Schematic 12 | . . . . . . . . 5 3 . . 2 2 Build 11 | . . . . . . . . 4 3 . . 2 2 Repair Station Hacks 38 | . . . 2 . . . 8 8 11 . . 2 7 Scan Component 20 | . . . 1 . . . 4 4 6 . . 1 4 Repair 18 | . . . 1 . . . 4 4 5 . . 1 3 Recycling Unit Hacks 7 | . . . 1 . . . 1 1 . . . . 4 Retrieve Components 7 | . . . 1 . . . 1 1 . . . . 4 Scanalyzer 24 | . . . 2 . . . 11 2 2 2 . 3 2 Insert Component 11 | . . . 1 . . . 5 1 1 1 . 1 1 Analyze 13 | . . . 1 . . . 6 1 1 1 . 2 1 Garrison Access Hacks 5 | . . . . . . . 1 . 2 1 . . 1 Seal Access 5 | . . . . . . . 1 . 2 1 . . 1 Unauthorized Hacks 26 | . . . 3 . . . 2 7 7 3 . . 4 Terminals 21 | . . . 3 . . . 2 4 6 3 . . 3 Assimilate 3 | . . . . . . . . . 1 1 . . 1 Botnet 14 | . . . 2 . . . 1 3 4 2 . . 2 Operators 4 | . . . 1 . . . 1 1 1 . . . . Fabricators 5 | . . . . . . . . 3 1 . . . 1 Siphon 5 | . . . . . . . . 3 1 . . . 1 Repair Stations . | . . . . . . . . . . . . . . Recycling Units . | . . . . . . . . . . . . . . Scanalyzers . | . . . . . . . . . . . . . . Garrison Access . | . . . . . . . . . . . . . . Data Cores Recovered 2 | . . . 1 . . . . . . 1 . . . Used . | . . . . . . . . . . . . . . Hacking Detections 86 | . 4 1 10 . . . 10 15 18 6 . 4 18 Full Trace Events 9 | . 2 . . . . . . 2 4 . . . 1 Feedback Events 1 | . . . . . . . . 1 . . . . . Hackware Fried 1 | . . . . . . . . 1 . . . . . Feedback Blocked . | . . . . . . . . . . . . . . Robot Schematics Acquired . | . . . . . . . . . . . . . . Robots Built . | . . . . . . . . . . . . . . Matter . | . . . . . . . . . . . . . . Time . | . . . . . . . . . . . . . . Total Robot Build Rating . | . . . . . . . . . . . . . . Part Schematics Acquired 13 | . . . 1 . . . 5 1 3 1 . 1 1 Parts Built 14 | . . . . . . . . 7 3 . . 2 2 Matter 1495 | . . . . . . . . 572 401 . . 190 332 Time 703 | . . . . . . . . 321 145 . . 95 142 Total Part Build Rating 62 | . . . . . . . . 33 9 . . 10 10 Parts Repaired 18 | . . . 1 . . . 4 4 5 . . 1 3 Time 653 | . . . 50 . . . 152 132 144 . . 50 125 Parts Recycled . | . . . . . . . . . . . . . . Recycled Matter . | . . . . . . . . . . . . . . Retrieved Matter . | . . . . . . . . . . . . . . Retrieved Components 32 | . . . 9 . . . 2 9 . . . . 12 Parts Scanalyzed 11 | . . . 1 . . . 5 1 1 1 . 1 1 Part Schematics Acquired 11 | . . . 1 . . . 5 1 1 1 . 1 1 Parts Damaged 1 | . . . . . . . . . . . . 1 . Bothacking | -11 -10 -10 -9 -9 -9 -8 -8 -7 -6 -5 -5 -5 -4 ------------ Run | Scr Mat Min Mat Min Exi Min Mat Fac Fac Fac Was Fac Fac Used RIF Installer . | . . . . . . . . . . . . . . Robots Hacked . | . . . . . . . . . . . . . . Non-combat . | . . . . . . . . . . . . . . Combat . | . . . . . . . . . . . . . . Robot Hacks Applied . | . . . . . . . . . . . . . . Relay Couplers Released . | . . . . . . . . . . . . . . Robots Rewired . | . . . . . . . . . . . . . . Allies Hacked . | . . . . . . . . . . . . . . Hacks Repelled . | . . . . . . . . . . . . . . Allies | -11 -10 -10 -9 -9 -9 -8 -8 -7 -6 -5 -5 -5 -4 -------- Run | Scr Mat Min Mat Min Exi Min Mat Fac Fac Fac Was Fac Fac Total Allies 4 | . . 2 . 1 . . . . . . . . 1 Largest Group 2 | . . 2 . 1 . . . . . . . . 1 Highest-Rated Group 43 | . . 43 . 31 . . . . . . . . 10 Highest-Rated Ally 31 | . . 31 . 31 . . . . . . . . 10 Total Orders . | . . . . . . . . . . . . . . Ally Attacks 5 | . . 5 . . . . . . . . . . . Total Damage 43 | . . 43 . . . . . . . . . . . Kills . | . . . . . . . . . . . . . . Allies Corrupted . | . . . . . . . . . . . . . . Allies Melted . | . . . . . . . . . . . . . . Intel | -11 -10 -10 -9 -9 -9 -8 -8 -7 -6 -5 -5 -5 -4 ------- Run | Scr Mat Min Mat Min Exi Min Mat Fac Fac Fac Was Fac Fac Robot Analysis Total 8 | . 1 1 . . . . 1 . 2 . . . 3 Derelict Logs Recovered 1 | . . 1 . . . . . . . . . . . Drone Launches . | . . . . . . . . . . . . . . Drone Recoveries . | . . . . . . . . . . . . . . Exploration | -11 -10 -10 -9 -9 -9 -8 -8 -7 -6 -5 -5 -5 -4 ------------- Run | Scr Mat Min Mat Min Exi Min Mat Fac Fac Fac Was Fac Fac Turns Passed 21398 | 54 1082 1112 2259 340 463 666 3127 3279 2494 1457 182 1151 3732 Spaces Moved 14831 | 23 490 424 1022 206 276 383 1506 2203 2213 1353 172 1041 3519 Core 1 | . . . . . . . . . . . . 1 . Treads 5063 | . 426 424 1022 206 276 383 1506 820 . . . . . Legs . | . . . . . . . . . . . . . . Wheels 87 | 23 64 . . . . . . . . . . . . Hover 9680 | . . . . . . . . 1383 2213 1353 172 1040 3519 Flight . | . . . . . . . . . . . . . . Fastest Speed 60 | 100 110 180 145 165 165 165 165 68 68 68 68 68 60 Average Speed 103 | 106 170 180 165 165 165 165 169 112 68 68 68 77 64 Slowest Speed 1350 | 110 180 180 180 165 165 165 197 182 72 142 68 1350 138 Overloaded Moves . | . . . . . . . . . . . . . . Propulsion Burnouts . | . . . . . . . . . . . . . . Robots Hopped . | . . . . . . . . . . . . . . Cave-ins Triggered . | . . . . . . . . . . . . . . Exploration Rate (%) 58 | 3 74 74 83 58 65 86 74 54 52 36 91 12 63 Regions Visited 13 Branch Regions 4 Pre-discovered Areas . | . . . . . . . . . . . . . . Known Exits Taken 3 | . . 1 1 . . . . . . . . 1 . Unknown Exits Taken 8 | 1 1 . . 1 1 1 1 1 1 . . . . Scrap Searched 3 | . . . . 1 . 2 . . . . . . . Spaces Dug 311 | . 1 3 3 . . . 9 39 79 72 . 19 86 Terrain Destroyed 942 | . 5 40 26 . . 55 126 63 122 137 139 62 167 Melee 138 | . 1 3 3 . . . 4 39 12 9 . 11 56 Projectile 175 | . . . . . . . 6 1 73 55 . 8 32 AOE 629 | . 4 37 23 . . 55 116 23 37 73 139 43 79 Terrain Rammed . | . . . . . . . . . . . . . . Walls Destroyed . | . . . . . . . . . . . . . . Machines Disabled . | . . . . . . . . . . . . . . Actions | -11 -10 -10 -9 -9 -9 -8 -8 -7 -6 -5 -5 -5 -4 --------- Run | Scr Mat Min Mat Min Exi Min Mat Fac Fac Fac Was Fac Fac Total 19612 | 37 627 721 1399 206 285 404 1978 2848 3035 1736 210 1338 4788 Wait 3204 | 2 39 255 203 . . 4 323 385 604 209 15 232 933 Move 14819 | 22 489 423 1021 205 275 382 1505 2202 2212 1353 171 1040 3519 Hop . | . . . . . . . . . . . . . . Pick Up 162 | . 17 3 21 . 3 2 20 36 26 8 . 6 20 Fast Attach 72 | 1 . . 6 . . 1 9 10 4 5 . 3 33 Attach 69 | 2 4 1 3 . . . 8 18 14 8 . 6 5 Detach 25 | . 1 . 1 . . . 5 10 1 2 . 1 4 Swap 182 | . 12 7 15 . 3 1 23 29 28 30 1 4 29 Drop 180 | 2 9 1 25 . 4 1 14 42 20 9 . 3 50 Fire 597 | 8 52 26 97 . . 11 58 65 108 82 23 16 51 Melee 269 | . 1 4 3 . . . 11 44 18 17 . 27 144 Ram 1 | . . . . . . . . 1 . . . . . Kick . | . . . . . . . . . . . . . . Crush 19 | . 3 1 4 1 . 2 2 6 . . . . . Escape Stasis 13 | . . . . . . . . . . 13 . . . Rewire . | . . . . . . . . . . . . . . Trap . | . . . . . . . . . . . . . . Miscellaneous . | . . . . . . . . . . . . . . Route ------- -11/Scrapyard -10/Materials (discovered 2 exits: *Mat / *Min) -10/Mines (discovered 2 exits: *Mat x2) -9/Materials (discovered 3 exits: *Mat x2 / *Min) -9/Mines -9/Exiles -8/Mines -8/Materials -7/Factory (discovered 6 exits: *Fac x2 / Sto x2 / *Low x2) -6/Factory (discovered 4 exits: *Fac x2 / Low x2) -5/Factory (discovered 6 exits: Fac x4 / [Upp] / [Ext]) -5/Waste -5/Factory -4/Factory (discovered 5 exits: [*Res x2] / Upp x2 / Arm) History --------- Turn | Location | Event 19 | -11/Scrapyard | Discovered new exit (range 3) 55 | -11/Scrapyard | Entered Materials 316 | -10/Materials | Build established: Mutant 642 | -10/Materials | Discovered new exit (range 14) 1113 | -10/Materials | Discovered new exit (range 8) 1137 | -10/Materials | Entered Mines 1224 | -10/Mines | Discovered new exit (range 8) 1240 | -10/Mines | Core integrity fell below 50% 1323 | -10/Mines | Identified exit to Materials 1714 | -10/Mines | Assembled infested the area 1719 | -10/Mines | Assisted by a Guerilla fighting off Assembled 2249 | -10/Mines | Entered Materials 2249 | -9/Materials | Evolved 2 slots: Propulsion x1, Utility x1 2753 | -9/Materials | Repaired Cmb. Airjet 2858 | -9/Materials | Discovered new exit (range 10) 3563 | -9/Materials | Identified exit to Mines 4170 | -9/Materials | Discovered new exit (range 10) 4508 | -9/Materials | Entered Mines 4553 | -9/Mines | Received a Mining Laser from a helpful Derelict 4827 | -9/Mines | Deemed a non-threat by the Exiles lab entrance 4829 | -9/Mines | Discovered new exit (range 5) 4848 | -9/Mines | Entered Exiles 4890 | -9/Exiles | Met 8R-AWN 4918 | -9/Exiles | Met EX-HEX 5065 | -9/Exiles | Met EX-BIN 5084 | -9/Exiles | Aligned with FarCom system 5086 | -9/Exiles | Given EX-Vault access code 5127 | -9/Exiles | Opened EX-Vault 5143 | -9/Exiles | Found Longsword +1 5178 | -9/Exiles | Warned to stay clear of 0b10 Research branches 5197 | -9/Exiles | Exiles lab attacked by MAIN.C 5293 | -9/Exiles | Discovered new exit (range 12) 5296 | -9/Exiles | Build established: Hauler-Mutant 5311 | -9/Exiles | Left Exiles lab with Longsword +1 5311 | -9/Exiles | Entered Mines 5967 | -8/Mines | Discovered new exit (range 8) 5977 | -8/Mines | Entered Materials 5977 | -8/Materials | Evolved 2 slots: Utility x2 6376 | -8/Materials | Repaired Adv. Treads 6415 | -8/Materials | Repaired Adv. Treads 6455 | -8/Materials | Repaired Adv. Treads 6894 | -8/Materials | Discovered new exit (range 16) 8522 | -8/Materials | Repaired Hvy. Armor Plating 9104 | -8/Materials | Entered Factory 9104 | -7/Factory | Evolved 2 slots: Propulsion x1, Utility x1 10629 | -7/Factory | Fabricated Hacking Suite (x1) 10847 | -7/Factory | Fabricated Cmb. Airjet (x2) 10871 | -7/Factory | Fabricated Cmb. Airjet? 10919 | -7/Factory | Build established: Hacker-Mutant 11082 | -7/Factory | Fabricated Cmb. Airjet? 11084 | -7/Factory | Local fabrication network quarantined 11239 | -7/Factory | Repaired Hvy. Armor Plating 11240 | -7/Factory | System Shield fried by hacking feedback 11405 | -7/Factory | Repaired Imp. Propulsion Shielding 11456 | -7/Factory | Repaired Lgt. Angular Momentum Engine 11504 | -7/Factory | First assault squad dispatched 11540 | -7/Factory | Identified exit to Storage 11540 | -7/Factory | Identified exit to Lower Caves 11565 | -7/Factory | Discovered new exit (range 8) 11591 | -7/Factory | Build established: Hacker-Scout 11814 | -7/Factory | Discovered new exit (range 12) 11859 | -7/Factory | Repaired Lgt. Angular Momentum Engine 12188 | -7/Factory | Found Prototype Launcher 12188 | -7/Factory | Identified Rocket Array 12383 | -7/Factory | Entered another Factory area 12383 | -6/Factory | Evolved 2 slots: Utility x2 12634 | -6/Factory | Fabricated Hacking Suite (x1) 12797 | -6/Factory | Discovered new exit (range 19) 12848 | -6/Factory | Discovered new exit (range 23) 12899 | -6/Factory | Identified exit to Lower Caves 13267 | -6/Factory | Repaired Hrd. Heavy Armor Plating 13294 | -6/Factory | Repaired Cmb. Airjet 13992 | -6/Factory | Discovered new exit (range 20) 14168 | -6/Factory | Fabricated Hacking Suite? 14345 | -6/Factory | Repaired Cmb. Airjet 14473 | -6/Factory | Fabricated Hacking Suite? 14734 | -6/Factory | Repaired Cmb. Airjet 14757 | -6/Factory | Repaired Hrd. Heavy Armor Plating 14877 | -6/Factory | Entered another Factory area 14877 | -5/Factory | Evolved 2 slots: Utility x2 14988 | -5/Factory | Identified exit to Factory 15341 | -5/Factory | Discovered new exit (range 13) 15977 | -5/Factory | System corruption reached 10% 16016 | -5/Factory | Lost 3 parts (2u1w) 16066 | -5/Factory | Found Hvy. Reactive Plating 16069 | -5/Factory | Found Hvy. Reactive Plating 16129 | -5/Factory | Discovered new exit (range 15) 16334 | -5/Factory | Manually triggered Chute Trap 16334 | -5/Factory | Sucked down chute 16334 | -5/Factory | Entered Waste 16340 | -5/Waste | Spotted C-40 Crusher 16349 | -5/Waste | EMP discharged 16352 | -5/Waste | Spotted C-40 Crusher 16361 | -5/Waste | Destroyed C-40 Crusher 16376 | -5/Waste | Destroyed C-40 Crusher 16384 | -5/Waste | Spotted C-40 Crusher 16386 | -5/Waste | Spotted C-40 Crusher 16386 | -5/Waste | Spotted C-40 Crusher 16449 | -5/Waste | EMP discharged 16452 | -5/Waste | Crushed by Compactor (0 parts destroyed, 1 dropped) 16462 | -5/Waste | Spotted C-40 Crusher 16466 | -5/Waste | Destroyed C-40 Crusher 16508 | -5/Waste | Discovered new exit (range 12) 16516 | -5/Waste | Entered Factory 16733 | -5/Factory | Discovered exit to Factory (range 11) 16840 | -5/Factory | Lost 5 parts (1p2n1u1w) 17037 | -5/Factory | Repaired Cmb. Airjet 17165 | -5/Factory | Fabricated Cmb. Airjet (x2) 17393 | -5/Factory | System corruption reached 30% 17420 | -5/Factory | Local fabrication network quarantined 17667 | -5/Factory | Entered another Factory area 17667 | -4/Factory | Evolved 2 slots: Power x1, Propulsion x1 17688 | -4/Factory | Build established: Hacker-Mutant 17800 | -4/Factory | Repaired Hvy. Reactive Plating 17861 | -4/Factory | Discovered new exit (range 11) 18313 | -4/Factory | Destroyed 7 combat bots 18923 | -4/Factory | Repaired Hvy. Reactive Plating 19917 | -4/Factory | Identified exit to Upper Caves 19917 | -4/Factory | Identified exit to Armory 20077 | -4/Factory | Discovered new exit (range 21) 20224 | -4/Factory | Repaired Cmb. Airjet 20301 | -4/Factory | Fabricated Imp. Hacking Suite? 20526 | -4/Factory | Build established: Hacker-Scout 20859 | -4/Factory | Fabricated Imp. Hacking Suite? 21167 | -4/Factory | First assault squad dispatched 21399 | -4/Factory | Self-destructed Last Messages --------------- 21330_ U-05 Engineer destroyed. 21332_ Acquired 19 matter. 21346_ U-05 Engineer builds a Wall. 21362_ Door malfunctions. 21365_ G-67 Veteran destroyed. 21365_ U-05 Engineer destroyed. 21372_ The unstable cave ceiling collapses. 21390_ C-30 ARC bursts open, deploying its payload. 21390_ G-73 Enforcer unfolds itself. 21390_ L-61 Swordsman unfolds itself. 21390_ I-47 Archangel unfolds itself. 21390_ Rocket intercepted. 21391_ Hvy. Reactive Plating destroyed. 21393_ G-73 Enforcer destroyed. 21393_ I-47 Archangel destroyed. 21394_ The unstable cave ceiling collapses. 21398_ Rocket Array destroyed. 21399_ The unstable cave ceiling collapses. 21399_ Adv. Terrain Scan Processor destroyed. 21399_ System corrupted by crushing effect (+2). Map ----- +----------------------------------------------------+ | ? ? ? ? ??????? ? ??????? ??? ? ??? ? ?? | | ? ? ??? ? ??????????? ???#???#?#?###?? | | ? """ "?" "?"??# ?? ?? ? ??#????###????? | | ? ? """ "?" ? ?"?" ?##??#????#?###??#?##?##?### | | "?" ""? ?? ""???#######????###??## ??? ? | | ???? ?#???#########??## ? | | """ "?" ??"" ##?############### | | ^ """^??" """ ?################# | | ### """^""" ?""? ?########?######## | | ### ? ##?############### | | ### """ """ """ ########### | | ### """ """ """ ########### | | ###^ """ """ """ ########### | | ?## ########### | | ### """ """ ########### | | # """ """ ######### ########### | | # """ """ ######### #################+### | | " # # # | | " + """ """ # # | | # """ """ + # | | # """!""" # # | | # = ! # / # =!! | | # """ """ # # ##########+### | | ### """ """ # # ##### = | | T # """ """ # ##### | | + # ] @ ##### """" | | #^ """ """ *# lb ##### """" | | # """ """ u/ ##### """" | | # """ """ # g ##### """" | | # = ######## # ######### """" | | # """ ^ !!# ] g + "" | | # """ !![# g g # """ """ # """ | | # """ !![# """S""" # " | | # # #! "R | | # """ """ / g # ## #+#### "" | | # """ """ # ############# | | ### """ """ # % | | # ? # | | " # ^ """^""" # """"" | | + """ """ # ######### "" F" | | # ""? """ # ########### "" "" | | # # ########### | | # ?? ? ######## ############### """ | | ####???#? # ###### """"" | | ##?# ?? # ! ###### """"" | | !#?#??### # ### | | #??????##? + ! ### [[ | | ? ??? ? #= |% =% ## *[[ | | ??##?#?#?? # %= [ | | ?????? ??# ?? # = %* * ### | +----------------------------------------------------+ Best States ------------- Heat Dissipation 43 Energy Generation 31 Energy Capacity 370 Matter Stores 300 Matter Capacity 600 Sight Range 16 Terrain Scan Range 24 Terrain Scan Density 210 ECM Strength 3 Armor Coverage 825 Resistance: KI 40 Propulsion Shielding 66 Evasion (%) 64 Melee Accuracy 5 Recoil Reduction 4 Offensive Hacking 36 Defensive Hacking 10 Item Schematics ----------------- Cmb. Airjet | -9/Materials | Scanalyzed Imp. Propulsion Shielding | -8/Materials | Scanalyzed System Shield | -8/Materials | Scanalyzed Hacking Suite | -8/Materials | Scanalyzed Lrg. Storage Unit | -8/Materials | Scanalyzed Hvy. Armor Plating | -8/Materials | Scanalyzed Hrd. Heavy Armor Plating | -7/Factory | Scanalyzed Lrn. Sensor Array | -6/Factory | Scanalyzed Variable Charge Gun | -6/Factory | Hacked Enh. Gauss Cannon | -6/Factory | Hacked Lgt. Fission Core | -5/Factory | Scanalyzed Mic. Fission Core | -5/Factory | Scanalyzed Imp. Hacking Suite | -4/Factory | Scanalyzed Robot Schematics ------------------ None Fabricated ------------ Hacking Suite | x1 | -7/Factory Cmb. Airjet | x2 | -7/Factory Cmb. Airjet | x2 | -7/Factory Cmb. Airjet | x2 | -7/Factory Hacking Suite | x1 | -6/Factory Hacking Suite | x1 | -6/Factory Hacking Suite | x1 | -6/Factory Cmb. Airjet | x2 | -5/Factory Imp. Hacking Suite | x1 | -4/Factory Imp. Hacking Suite | x1 | -4/Factory Alien Tech Used ----------------- None Achievements -------------- Deadly Force Production Line Quantum Hacking Respectable Loadout Wheee! Challenges ------------ None Game ------ Seed RecyclingLegGreatsword Manual? 0 Play Time 06:13:09 Cumulative 35.4 hours Start 2020.10.31 @ 16:33:41 End 2020.11.01 @ 18:55:02 Sessions 1 Manual Loads 0 Difficulty Rogue Special Mode Halloween2020/ForbiddenLore Game No. 21 Rogue 21 Adventurer 0 Explorer 0 Win Type - Total 0 Types 0/0/0/0/0/0/0/0/0 Lore% 16 Gallery% 19 Achievement% 19 Wizard Run 0 Options --------- ASCII 1 Keyboard 1 Movement Vi Keybinds 0 Fullscreen 1 Font 16/Terminus Map View 75x55 Tactical HUD 1 Map Filters NONE Filters NONE Steam 1 RUN: 652c26a7-4ba5-4ef5-a968-e6749f6c09b7